[Event "DVM U12 2024"]
[Site "Heidelberg"]
[Date "2024.12.29"]
[Round "6"]
[White "Lu, Alexander"]
[Black "Kuhns, David"]
[Result "1-0"]
[ECO "D55"]
[WhiteElo "1571"]
[BlackElo "1904"]
[Annotator "NA RC"]
[PlyCount "101"]
[EventDate "2024.12.23"]
[EventType "team-tourn"]
[EventRounds "7"]
[EventCountry "GER"]
[SourceTitle "playchess.com"]
[Source "ChessBase"]
[SourceQuality "1"]
[TimeControl "40/5400+30:1800+30"]

1. d4 {[%emt 0:00:02]} d5 {[%emt 0:00:06]} 2. c4 {[%emt 0:00:03]} e6 {[%emt 0:00:05]} 3. Nc3 {[%emt 0:00:05]} Nf6 {[%emt 0:00:06]} 4. cxd5 {[%emt 0:00:11]} exd5 {[%emt 0:00:09]} 5. Bg5 {[%emt 0:00:08]} Be7 {[%emt 0:00:26]} 6. e3 {[%emt 0:00:10]} h6 {[%emt 0:00:26]} 7. Bxf6 {[%emt 0:00:46]} Bxf6 {[%emt 0:00:09]} 8. Nf3 {[%emt 0:00:09]} O-O {[%emt 0:00:45]} 9. Bd3 {[%emt 0:00:31]} Be6 {[%emt 0:01:55]} 10. Qb3 {[%emt 0:00:47]} Nc6 {[%emt 0:02:59]} 11. Qxb7 {[%emt 0:01:38]} Qd7 {[%emt 0:00:24]} 12. Bb5 {[%emt 0:01:21]} Na5 {[%emt 0:02:52]} 13. Qxa8 {[%emt 0:00:45]} Rxa8 {[%emt 0:00:48]} 14. Bxd7 {[%emt 0:00:15]} Bxd7 {[%emt 0:00:08]} 15. Nxd5 {[%emt 0:00:08]} Bd8 {[%emt 0:01:58]} 16. Rc1 {[%emt 0:01:38]} c6 {[%emt 0:00:25]} 17. Nf4 {[%emt 0:01:00]} Rb8 {[%emt 0:03:16]} 18. b3 {[%emt 0:00:23]} Be7 {[%emt 0:01:43]} 19. O-O {[%emt 0:00:35]} Ba3 {[%emt 0:03:31]} 20. Rcd1 {[%emt 0:01:45]} Bg4 {[%emt 0:02:32]} 21. h3 {[%emt 0:00:13]} Bxf3 {[%emt 0:00:47]} 22. gxf3 {[%emt 0:00:06]} Rd8 {[%emt 0:01:01]} 23. Rb1 {[%emt 0:01:29]} Bd6 {[%emt 0:01:03]} 24. Nd3 {[%emt 0:00:28]} Bc7 {[%emt 0:02:51]} 25. Rfc1 {[%emt 0:00:50]} Rd6 {[%emt 0:01:34]} 26. Nc5 {[%emt 0:00:27]} Bb6 {[%emt 0:01:46]} 27. b4 {[%emt 0:01:20]} Bxc5 {[%emt 0:01:02]} 28. bxc5 {[%emt 0:00:19]} Rg6+ {[%emt 0:00:19]} 29. Kh2 {[%emt 0:00:09]} Re6 {[%emt 0:01:43]} 30. Rb8+ {[%emt 0:00:43]} Kh7 {[%emt 0:00:17]} 31. Ra8 {[%emt 0:00:30]} Re7 {[%emt 0:01:07]} 32. e4 {[%emt 0:00:49]} f6 {[%emt 0:00:44]} 33. d5 {[%emt 0:00:38]} g5 {[%emt 0:00:38]} 34. d6 {[%emt 0:00:58]} Rd7 {[%emt 0:00:15]} 35. Kg3 {[%emt 0:00:34]} Kg6 {[%emt 0:00:20]} 36. h4 {[%emt 0:00:49]} gxh4+ {[%emt 0:00:08]} 37. Kxh4 {[%emt 0:00:02]} h5 {[%emt 0:00:37]} 38. f4 {[%emt 0:00:25]} f5 {[%emt 0:00:14]} 39. e5 {[%emt 0:00:15]} Kf7 {[%emt 0:00:50]} 40. Kxh5 {[%emt 0:00:28]} Ke6 {[%emt 0:00:10]} 41. Kg6 {[%emt 0:30:19]} a6 {[%emt 0:31:30]} 42. Rxa6 {[%emt 0:01:03]} Nb7 {[%emt 0:00:30]} 43. Rxc6 {[%emt 0:00:27]} Nd8 {[%emt 0:00:18]} 44. Rc7 {[%emt 0:00:30]} Rxc7 {[%emt 0:04:45]} 45. dxc7 {[%emt 0:00:12]} Kd7 {[%emt 0:00:13]} 46. cxd8=Q+ {[%emt 0:00:18]} Kxd8 {[%emt 0:00:11]} 47. c6 {[%emt 0:00:49]} Kc7 {[%emt 0:00:46]} 48. e6 {[%emt 0:00:05]} Kd6 {[%emt 0:00:15]} 49. c7 {[%emt 0:00:07]} Ke7 {[%emt 0:00:42]} 50. c8=Q {[%emt 0:00:17]} Kd6 {[%emt 0:00:12]} 51. Qd7# {[%emt 0:00:14]} 1-0

[Event "DVM U12 2024"]
[Site "Heidelberg"]
[Date "2024.12.29"]
[Round "6"]
[White "Ramayanam, Nithya"]
[Black "Luft, Felix"]
[Result "0-1"]
[ECO "C54"]
[WhiteElo "1566"]
[BlackElo "1294"]
[Annotator "NA RC"]
[PlyCount "98"]
[EventDate "2024.12.23"]
[EventType "team-tourn"]
[EventRounds "7"]
[EventCountry "GER"]
[SourceTitle "playchess.com"]
[Source "ChessBase"]
[SourceQuality "1"]
[TimeControl "40/5400+30:1800+30"]

1. e4 {[%emt 0:00:02]} e5 {[%emt 0:00:07]} 2. Nf3 {[%emt 0:00:05]} Nc6 {[%emt 0:00:08]} 3. Bc4 {[%emt 0:00:05]} Bc5 {[%emt 0:00:11]} 4. c3 {[%emt 0:00:08]} Nf6 {[%emt 0:00:13]} 5. d3 {[%emt 0:00:07]} d6 {[%emt 0:00:19]} 6. h3 {[%emt 0:00:58]} Be6 {[%emt 0:00:43]} 7. Bxe6 {[%emt 0:02:27]} fxe6 {[%emt 0:00:16]} 8. Qb3 {[%emt 0:02:51]} Qc8 {[%emt 0:04:52]} 9. Qd1 {[%emt 0:03:18]} Qd7 {[%emt 0:03:48]} 10. O-O {[%emt 0:00:33]} Ne7 {[%emt 0:05:47]} 11. Be3 {[%emt 0:00:58]} Bb6 {[%emt 0:02:38]} 12. Nbd2 {[%emt 0:00:55]} Ng6 {[%emt 0:02:42]} 13. Nc4 {[%emt 0:02:19]} Nf4 {[%emt 0:02:33]} 14. Nxb6 {[%emt 0:01:59]} axb6 {[%emt 0:00:47]} 15. Bxf4 {[%emt 0:09:36]} exf4 {[%emt 0:00:14]} 16. e5 {[%emt 0:02:27]} dxe5 {[%emt 0:04:40]} 17. Nxe5 {[%emt 0:00:58]} Qb5 {[%emt 0:04:36]} 18. Nc4 {[%emt 0:01:27]} O-O {[%emt 0:02:41]} 19. Re1 {[%emt 0:03:26]} Rfe8 {[%emt 0:03:02]} 20. Qf3 {[%emt 0:02:14]} Nd5 {[%emt 0:07:53]} 21. Qg4 {[%emt 0:04:10]} Qd7 {[%emt 0:04:20]} 22. Ne5 {[%emt 0:01:23]} Qd6 {[%emt 0:01:21]} 23. c4 {[%emt 0:02:49]} Nb4 {[%emt 0:01:40]} 24. Re2 {[%emt 0:04:13]} Nxd3 {[%emt 0:02:04]} 25. Nxd3 {[%emt 0:00:24]} Qxd3 {[%emt 0:00:11]} 26. Ree1 {[%emt 0:00:42]} Qxc4 {[%emt 0:01:22]} 27. b3 {[%emt 0:02:25]} Qc3 {[%emt 0:04:34]} 28. Qxf4 {[%emt 0:00:54]} Rxa2 {[%emt 0:01:41]} 29. Qc1 {[%emt 0:03:53]} Qxc1 {[%emt 0:00:37]} 30. Raxc1 {[%emt 0:00:54]} c6 {[%emt 0:00:35]} 31. Re3 {[%emt 0:01:45]} Rf8 {[%emt 0:02:58]} 32. f3 {[%emt 0:01:12]} Rf6 {[%emt 0:01:15]} 33. Rd1 {[%emt 0:01:16]} Ra7 {[%emt 0:01:36]} 34. Red3 {[%emt 0:01:12]} Kf7 {[%emt 0:02:16]} 35. Rd7+ {[%emt 0:00:27]} Kg6 {[%emt 0:00:26]} 36. R1d4 {[%emt 0:00:16]} h5 {[%emt 0:02:29]} 37. h4 {[%emt 0:01:04]} e5 {[%emt 0:02:39]} 38. Re4 {[%emt 0:00:44]} Re6 {[%emt 0:00:22]} 39. f4 {[%emt 0:00:39]} Kf6 {[%emt 0:02:08]} 40. Rxe5 {[%emt 0:00:16]} Rxe5 {[%emt 0:00:14]} 41. fxe5+ {[%emt 0:30:06]} Kxe5 {[%emt 0:30:55]} 42. Rxg7 {[%emt 0:00:04]} Kf6 {[%emt 0:00:55]} 43. Rg8 {[%emt 0:01:12]} Ra3 {[%emt 0:00:32]} 44. Rb8 {[%emt 0:01:50]} Rxb3 {[%emt 0:00:20]} 45. Rxb7 {[%emt 0:00:15]} b5 {[%emt 0:00:57]} 46. Rb6 {[%emt 0:00:23]} Rc3 {[%emt 0:00:40]} 47. Kf2 {[%emt 0:00:52]} Kf5 {[%emt 0:00:32]} 48. Rb8 {[%emt 0:02:09]} Kg4 {[%emt 0:00:46]} 49. g3 {[%emt 0:02:42]} Rc2+ {[%emt 0:00:13]} 0-1

[Event "DVM U12 2024"]
[Site "Heidelberg"]
[Date "2024.12.29"]
[Round "6"]
[White "Liu, Kairui"]
[Black "Satti, Shahroz"]
[Result "0-1"]
[ECO "B56"]
[WhiteElo "1559"]
[BlackElo "1525"]
[Annotator "NA RC"]
[PlyCount "98"]
[EventDate "2024.12.23"]
[EventType "team-tourn"]
[EventRounds "7"]
[EventCountry "GER"]
[SourceTitle "playchess.com"]
[Source "ChessBase"]
[SourceQuality "1"]
[TimeControl "40/5400+30:1800+30"]

1. e4 {[%emt 0:00:02]} c5 {[%emt 0:00:12]} 2. Nf3 {[%emt 0:00:05]} d6 {[%emt 0:00:10]} 3. d4 {[%emt 0:00:10]} cxd4 {[%emt 0:00:10]} 4. Qxd4 {[%emt 0:00:05]} Nc6 {[%emt 0:00:53]} 5. Qd1 {[%emt 0:00:26]} Nf6 {[%emt 0:00:16]} 6. Nc3 {[%emt 0:00:38]} g6 {[%emt 0:00:16]} 7. h3 {[%emt 0:00:51]} Bg7 {[%emt 0:00:09]} 8. Bc4 {[%emt 0:00:59]} O-O {[%emt 0:00:13]} 9. Be3 {[%emt 0:01:53]} Bd7 {[%emt 0:02:13]} 10. Qd2 {[%emt 0:04:07]} a6 {[%emt 0:00:41]} 11. O-O-O {[%emt 0:03:15]} b5 {[%emt 0:01:15]} 12. Bb3 {[%emt 0:01:41]} Na5 {[%emt 0:10:22]} 13. a3 {[%emt 0:06:31]} Nxb3+ {[%emt 0:00:37]} 14. cxb3 {[%emt 0:00:12]} Qc7 {[%emt 0:00:39]} 15. Kb1 {[%emt 0:05:39]} Qb7 {[%emt 0:04:36]} 16. e5 {[%emt 0:04:18]} dxe5 {[%emt 0:03:06]} 17. Nxe5 {[%emt 0:06:39]} Bf5+ {[%emt 0:00:26]} 18. Ka2 {[%emt 0:01:34]} Qxg2 {[%emt 0:01:05]} 19. Rdg1 {[%emt 0:03:45]} Qb7 {[%emt 0:01:32]} 20. Nd3 {[%emt 0:05:37]} Ne4 {[%emt 0:04:59]} 21. Nxe4 {[%emt 0:01:36]} Bxe4 {[%emt 0:00:12]} 22. Rh2 {[%emt 0:00:26]} Rfd8 {[%emt 0:00:29]} 23. f3 {[%emt 0:02:47]} Bxd3 {[%emt 0:00:12]} 24. Qg2 {[%emt 0:00:55]} Bf5 {[%emt 0:01:24]} 25. h4 {[%emt 0:00:52]} h5 {[%emt 0:02:05]} 26. Qg3 {[%emt 0:02:24]} Rd7 {[%emt 0:04:11]} 27. Rd2 {[%emt 0:01:45]} Rad8 {[%emt 0:01:03]} 28. Rgd1 {[%emt 0:01:25]} Rxd2 {[%emt 0:01:38]} 29. Rxd2 {[%emt 0:00:18]} Rxd2 {[%emt 0:00:18]} 30. Bxd2 {[%emt 0:00:07]} Be6 {[%emt 0:01:56]} 31. Qg5 {[%emt 0:02:55]} Qxf3 {[%emt 0:00:51]} 32. Qe3 {[%emt 0:00:54]} Qxe3 {[%emt 0:00:58]} 33. Bxe3 {[%emt 0:00:30]} Bf6 {[%emt 0:00:04]} 34. Bf2 {[%emt 0:00:07]} g5 {[%emt 0:00:11]} 35. hxg5 {[%emt 0:00:13]} Bxg5 {[%emt 0:00:15]} 36. a4 {[%emt 0:00:45]} bxa4 {[%emt 0:00:23]} 37. Ka3 {[%emt 0:00:24]} axb3 {[%emt 0:00:20]} 38. Kb4 {[%emt 0:00:26]} Kg7 {[%emt 0:00:07]} 39. Ka5 {[%emt 0:00:06]} Bc4 {[%emt 0:01:00]} 40. Bd4+ {[%emt 0:01:40]} Bf6 {[%emt 0:00:20]} 41. Bc5 {[%emt 0:31:05]} Bxb2 {[%emt 0:30:41]} 42. Bxe7 {[%emt 0:00:42]} Bc3+ {[%emt 0:00:06]} 43. Kb6 {[%emt 0:00:15]} b2 {[%emt 0:00:01]} 44. Kc5 {[%emt 0:00:15]} Bb5 {[%emt 0:00:29]} 45. Kb6 {[%emt 0:00:55]} b1=Q {[%emt 0:00:51]} 46. Kc7 {[%emt 0:00:23]} Ba5+ {[%emt 0:00:00]} 47. Kd6 {[%emt 0:00:37]} Qd3+ {[%emt 0:00:00]} 48. Kc5 {[%emt 0:00:21]} Qc4+ {[%emt 0:00:32]} 49. Kd6 {[%emt 0:00:12]} Bc7# {[%emt 0:00:31]} 0-1

[Event "DVM U12 2024"]
[Site "Heidelberg"]
[Date "2024.12.29"]
[Round "6"]
[White "Libert, Nick"]
[Black "Heidtkamp, Anna"]
[Result "1-0"]
[ECO "C54"]
[WhiteElo "1548"]
[BlackElo "1663"]
[Annotator "NA RC"]
[PlyCount "73"]
[EventDate "2024.12.23"]
[EventType "team-tourn"]
[EventRounds "7"]
[EventCountry "GER"]
[SourceTitle "playchess.com"]
[Source "ChessBase"]
[SourceQuality "1"]
[TimeControl "40/5400+30:1800+30"]

1. e4 {[%emt 0:00:00]} e5 {[%emt 0:00:06]} 2. Nf3 {[%emt 0:00:03]} Nc6 {[%emt 0:00:11]} 3. Bc4 {[%emt 0:00:02]} Bc5 {[%emt 0:00:13]} 4. c3 {[%emt 0:00:07]} Nf6 {[%emt 0:00:06]} 5. d4 {[%emt 0:00:04]} exd4 {[%emt 0:00:18]} 6. b4 {[%emt 0:00:02]} Bd6 {[%emt 0:02:50]} 7. O-O {[%emt 0:01:36]} O-O {[%emt 0:15:37]} 8. Bg5 {[%emt 0:00:57]} dxc3 {[%emt 0:05:55]} 9. Nxc3 {[%emt 0:00:27]} Bxb4 {[%emt 0:02:58]} 10. Nd5 {[%emt 0:00:12]} Be7 {[%emt 0:01:15]} 11. Nxe7+ {[%emt 0:01:25]} Qxe7 {[%emt 0:01:39]} 12. Re1 {[%emt 0:00:39]} d6 {[%emt 0:01:45]} 13. Nh4 {[%emt 0:06:06]} h6 {[%emt 0:03:21]} 14. Nf5 {[%emt 0:03:14]} Bxf5 {[%emt 0:03:42]} 15. exf5 {[%emt 0:00:22]} Qd8 {[%emt 0:01:02]} 16. Bh4 {[%emt 0:00:26]} Ne5 {[%emt 0:01:30]} 17. Bb3 {[%emt 0:00:34]} Ned7 {[%emt 0:01:59]} 18. Qf3 {[%emt 0:00:45]} c6 {[%emt 0:02:22]} 19. Rad1 {[%emt 0:01:52]} d5 {[%emt 0:01:36]} 20. Qg3 {[%emt 0:02:49]} Qb8 {[%emt 0:02:38]} 21. f4 {[%emt 0:00:48]} Ne4 {[%emt 0:01:15]} 22. Rxe4 {[%emt 0:00:13]} dxe4 {[%emt 0:00:50]} 23. Rxd7 {[%emt 0:00:03]} Kh8 {[%emt 0:32:50]} 24. Bxf7 {[%emt 0:02:04]} b5 {[%emt 0:02:22]} 25. Be6 {[%emt 0:00:45]} Rg8 {[%emt 0:04:06]} 26. Bxg8 {[%emt 0:00:45]} Qxg8 {[%emt 0:00:11]} 27. f6 {[%emt 0:01:55]} g6 {[%emt 0:02:40]} 28. Qc3 {[%emt 0:01:07]} Qc4 {[%emt 0:01:32]} 29. Qd2 {[%emt 0:02:34]} Qc5+ {[%emt 0:00:48]} 30. Kh1 {[%emt 0:02:03]} Qf8 {[%emt 0:00:35]} 31. h3 {[%emt 0:09:54]} Re8 {[%emt 0:03:29]} 32. Qd4 {[%emt 0:00:54]} c5 {[%emt 0:00:43]} 33. Qb2 {[%emt 0:01:31]} Rb8 {[%emt 0:01:29]} 34. Qe5 {[%emt 0:00:20]} Re8 {[%emt 0:00:16]} 35. Re7 {[%emt 0:00:09]} Rc8 {[%emt 0:00:34]} 36. f7+ {[%emt 0:00:05]} Qg7 {[%emt 0:00:18]} 37. f8=Q+ {[%emt 0:00:32]} 1-0

[Event "DVM U12 2024"]
[Site "Heidelberg"]
[Date "2024.12.29"]
[Round "6"]
[White "Cetinalp, Poyraz"]
[Black "Berndt, Ronson"]
[Result "0-1"]
[ECO "B22"]
[WhiteElo "1530"]
[BlackElo "1812"]
[Annotator "NA RC"]
[PlyCount "134"]
[EventDate "2024.12.23"]
[EventType "team-tourn"]
[EventRounds "7"]
[EventCountry "GER"]
[SourceTitle "playchess.com"]
[Source "ChessBase"]
[SourceQuality "1"]
[TimeControl "40/5400+30:1800+30"]

1. e4 {[%emt 0:00:00]} c5 {[%emt 0:00:17]} 2. c3 {[%emt 0:00:03]} d5 {[%emt 0:00:18]} 3. exd5 {[%emt 0:00:07]} Qxd5 {[%emt 0:00:13]} 4. Nf3 {[%emt 0:00:22]} Nf6 {[%emt 0:07:59]} 5. d4 {[%emt 0:00:43]} cxd4 {[%emt 0:00:28]} 6. cxd4 {[%emt 0:00:18]} a6 {[%emt 0:01:34]} 7. Nc3 {[%emt 0:00:16]} Qd8 {[%emt 0:00:15]} 8. Bf4 {[%emt 0:00:50]} e6 {[%emt 0:00:40]} 9. a3 {[%emt 0:00:32]} Nc6 {[%emt 0:00:40]} 10. Bc4 {[%emt 0:01:34]} Bd6 {[%emt 0:00:25]} 11. Bxd6 {[%emt 0:02:28]} Qxd6 {[%emt 0:00:47]} 12. d5 {[%emt 0:01:46]} exd5 {[%emt 0:06:39]} 13. Nxd5 {[%emt 0:01:08]} Nxd5 {[%emt 0:02:53]} 14. Bxd5 {[%emt 0:06:22]} Be6 {[%emt 0:01:35]} 15. Bxe6 {[%emt 0:01:46]} Qxe6+ {[%emt 0:00:05]} 16. Qe2 {[%emt 0:00:17]} Qxe2+ {[%emt 0:00:13]} 17. Kxe2 {[%emt 0:00:05]} O-O {[%emt 0:00:09]} 18. Rhe1 {[%emt 0:00:12]} Rad8 {[%emt 0:01:49]} 19. Kf1 {[%emt 0:00:42]} f6 {[%emt 0:00:09]} 20. Rad1 {[%emt 0:01:44]} Kf7 {[%emt 0:00:35]} 21. g3 {[%emt 0:02:25]} Na5 {[%emt 0:04:51]} 22. Rc1 {[%emt 0:08:20]} Rd7 {[%emt 0:02:39]} 23. b4 {[%emt 0:02:00]} Nc6 {[%emt 0:01:35]} 24. Rcd1 {[%emt 0:02:01]} Rfd8 {[%emt 0:02:34]} 25. Ke2 {[%emt 0:05:29]} Nd4+ {[%emt 0:02:48]} 26. Nxd4 {[%emt 0:00:35]} Rxd4 {[%emt 0:00:07]} 27. Rxd4 {[%emt 0:00:11]} Rxd4 {[%emt 0:00:07]} 28. Kf3 {[%emt 0:00:17]} Rd3+ {[%emt 0:00:21]} 29. Re3 {[%emt 0:00:06]} Rxe3+ {[%emt 0:00:10]} 30. Kxe3 {[%emt 0:00:03]} Ke6 {[%emt 0:00:28]} 31. f4 {[%emt 0:00:17]} Kd5 {[%emt 0:00:24]} 32. Kd3 {[%emt 0:00:05]} f5 {[%emt 0:00:10]} 33. h3 {[%emt 0:01:17]} h5 {[%emt 0:00:42]} 34. Kc3 {[%emt 0:15:41]} Ke4 {[%emt 0:01:13]} 35. Kc4 {[%emt 0:00:09]} Kf3 {[%emt 0:00:07]} 36. Kc5 {[%emt 0:00:17]} Kxg3 {[%emt 0:00:04]} 37. Kb6 {[%emt 0:00:06]} Kxf4 {[%emt 0:00:04]} 38. Kxb7 {[%emt 0:00:05]} Kg3 {[%emt 0:00:06]} 39. Kxa6 {[%emt 0:00:11]} f4 {[%emt 0:00:02]} 40. b5 {[%emt 0:00:08]} f3 {[%emt 0:00:05]} 41. b6 {[%emt 0:30:03]} f2 {[%emt 0:30:03]} 42. b7 {[%emt 0:00:20]} f1=Q+ {[%emt 0:00:08]} 43. Kb6 {[%emt 0:01:06]} Qb1+ {[%emt 0:00:16]} 44. Ka7 {[%emt 0:00:07]} Kxh3 {[%emt 0:01:10]} 45. b8=Q {[%emt 0:00:43]} Qxb8+ {[%emt 0:00:11]} 46. Kxb8 {[%emt 0:00:04]} g5 {[%emt 0:00:01]} 47. a4 {[%emt 0:00:08]} g4 {[%emt 0:00:04]} 48. a5 {[%emt 0:00:02]} g3 {[%emt 0:00:05]} 49. a6 {[%emt 0:00:06]} g2 {[%emt 0:00:03]} 50. a7 {[%emt 0:00:02]} g1=Q {[%emt 0:00:12]} 51. a8=Q {[%emt 0:00:08]} Qg8+ {[%emt 0:00:02]} 52. Kb7 {[%emt 0:00:11]} Qxa8+ {[%emt 0:00:06]} 53. Kxa8 {[%emt 0:00:02]} Kg3 {[%emt 0:00:14]} 54. Kb7 {[%emt 0:00:17]} h4 {[%emt 0:00:04]} 55. Kc6 {[%emt 0:00:02]} h3 {[%emt 0:00:03]} 56. Kd5 {[%emt 0:00:05]} h2 {[%emt 0:00:04]} 57. Ke5 {[%emt 0:00:05]} h1=Q {[%emt 0:00:15]} 58. Kf5 {[%emt 0:00:22]} Qe1 {[%emt 0:00:40]} 59. Kf6 {[%emt 0:00:43]} Qe4 {[%emt 0:00:55]} 60. Kg5 {[%emt 0:00:30]} Qf4+ {[%emt 0:00:30]} 61. Kg6 {[%emt 0:00:30]} Qe5 {[%emt 0:00:30]} 62. Kf7 {[%emt 0:00:30]} Qd6 {[%emt 0:00:30]} 63. Ke8 {[%emt 0:00:30]} Qc7 {[%emt 0:00:30]} 64. Kf8 {[%emt 0:00:30]} Kf4 {[%emt 0:00:30]} 65. Kg8 {[%emt 0:00:30]} Kf5 {[%emt 0:00:30]} 66. Kf8 {[%emt 0:00:30]} Kf6 {[%emt 0:00:30]} 67. Ke8 {[%emt 0:00:30]} Qe7# {[%emt 0:00:30]} 0-1

[Event "DVM U12 2024"]
[Site "Heidelberg"]
[Date "2024.12.29"]
[Round "6"]
[White "Kurakin, Martin"]
[Black "Moritz, Jakob"]
[Result "1-0"]
[ECO "C01"]
[WhiteElo "1389"]
[BlackElo "859"]
[Annotator "NA RC"]
[PlyCount "75"]
[EventDate "2024.12.23"]
[EventType "team-tourn"]
[EventRounds "7"]
[EventCountry "GER"]
[SourceTitle "playchess.com"]
[Source "ChessBase"]
[SourceQuality "1"]
[TimeControl "40/5400+30:1800+30"]

1. e4 {[%emt 0:00:01]} e5 {[%emt 0:00:05]} 2. Nf3 {[%emt 0:00:05]} Nf6 {[%emt 0:00:07]} 3. Nxe5 {[%emt 0:00:05]} d6 {[%emt 0:00:07]} 4. Nf3 {[%emt 0:00:10]} Nxe4 {[%emt 0:00:27]} 5. Nc3 {[%emt 0:01:32]} Nf6 {[%emt 0:04:23]} 6. d4 {[%emt 0:00:20]} d5 {[%emt 0:03:16]} 7. Bb5+ {[%emt 0:05:10]} c6 {[%emt 0:01:45]} 8. Bd3 {[%emt 0:00:10]} c5 {[%emt 0:01:39]} 9. dxc5 {[%emt 0:00:23]} Bxc5 {[%emt 0:00:35]} 10. Bb5+ {[%emt 0:00:33]} Nc6 {[%emt 0:02:14]} 11. Ne5 {[%emt 0:00:31]} O-O {[%emt 0:02:09]} 12. Nxc6 {[%emt 0:01:11]} bxc6 {[%emt 0:00:31]} 13. Bxc6 {[%emt 0:00:20]} Rb8 {[%emt 0:00:30]} 14. Bxd5 {[%emt 0:01:19]} Nxd5 {[%emt 0:01:59]} 15. Qxd5 {[%emt 0:00:12]} Qxd5 {[%emt 0:07:15]} 16. Nxd5 {[%emt 0:00:07]} Ba6 {[%emt 0:05:20]} 17. b3 {[%emt 0:00:31]} Rfe8+ {[%emt 0:17:57]} 18. Be3 {[%emt 0:00:23]} Bb4+ {[%emt 0:03:29]} 19. Nxb4 {[%emt 0:00:33]} Rxb4 {[%emt 0:00:02]} 20. c4 {[%emt 0:00:13]} f5 {[%emt 0:00:36]} 21. O-O {[%emt 0:00:10]} Re7 {[%emt 0:02:03]} 22. Bc5 {[%emt 0:00:12]} Rbb7 {[%emt 0:02:12]} 23. Bxe7 {[%emt 0:00:15]} Rxe7 {[%emt 0:01:35]} 24. Rfe1 {[%emt 0:00:42]} Rd7 {[%emt 0:05:36]} 25. Rac1 {[%emt 0:00:23]} f4 {[%emt 0:03:44]} 26. f3 {[%emt 0:00:25]} g5 {[%emt 0:04:39]} 27. c5 {[%emt 0:00:10]} h5 {[%emt 0:02:26]} 28. c6 {[%emt 0:00:09]} Rd2 {[%emt 0:02:52]} 29. c7 {[%emt 0:00:36]} Bc8 {[%emt 0:03:01]} 30. Re8+ {[%emt 0:01:03]} Kf7 {[%emt 0:01:24]} 31. Rxc8 {[%emt 0:00:20]} g4 {[%emt 0:00:49]} 32. Rf8+ {[%emt 0:00:15]} Kxf8 {[%emt 0:00:27]} 33. c8=Q+ {[%emt 0:00:11]} Ke7 {[%emt 0:00:27]} 34. Re1+ {[%emt 0:00:37]} Kf7 {[%emt 0:00:55]} 35. Qe8+ {[%emt 0:00:07]} Kf6 {[%emt 0:00:36]} 36. Qf8+ {[%emt 0:00:13]} Kg5 {[%emt 0:01:08]} 37. Re5+ {[%emt 0:00:13]} Kh4 {[%emt 0:00:22]} 38. Qf6# {[%emt 0:00:26]} 1-0

[Event "DVM U12 2024"]
[Site "Heidelberg"]
[Date "2024.12.29"]
[Round "6"]
[White "Balthasar, Johann"]
[Black "Tiuca, Emma"]
[Result "0-1"]
[ECO "C01"]
[WhiteElo "1317"]
[BlackElo "1472"]
[Annotator "NA RC"]
[PlyCount "62"]
[EventDate "2024.12.23"]
[EventType "team-tourn"]
[EventRounds "7"]
[EventCountry "GER"]
[SourceTitle "playchess.com"]
[Source "ChessBase"]
[SourceQuality "1"]
[TimeControl "40/5400+30:1800+30"]

1. e4 {[%emt 0:00:02]} e6 {[%emt 0:00:13]} 2. d4 {[%emt 0:00:20]} d5 {[%emt 0:00:15]} 3. exd5 {[%emt 0:00:20]} exd5 {[%emt 0:00:11]} 4. Nf3 {[%emt 0:00:41]} Bd6 {[%emt 0:00:22]} 5. Bd3 {[%emt 0:02:45]} Nf6 {[%emt 0:00:44]} 6. O-O {[%emt 0:01:23]} O-O {[%emt 0:02:06]} 7. Bg5 {[%emt 0:01:05]} Be6 {[%emt 0:01:34]} 8. Nbd2 {[%emt 0:00:57]} Nbd7 {[%emt 0:01:20]} 9. c3 {[%emt 0:00:59]} c6 {[%emt 0:00:45]} 10. Qc2 {[%emt 0:00:51]} Qc7 {[%emt 0:01:08]} 11. Rfe1 {[%emt 0:02:16]} Rfe8 {[%emt 0:00:27]} 12. Re2 {[%emt 0:00:53]} h6 {[%emt 0:02:16]} 13. Bh4 {[%emt 0:00:41]} b6 {[%emt 0:00:53]} 14. b4 {[%emt 0:01:28]} Rac8 {[%emt 0:05:49]} 15. Nb3 {[%emt 0:05:02]} Bg4 {[%emt 0:03:43]} 16. Bg3 {[%emt 0:03:37]} Bxf3 {[%emt 0:01:19]} 17. gxf3 {[%emt 0:02:58]} Nh5 {[%emt 0:03:40]} 18. Bxd6 {[%emt 0:02:17]} Qxd6 {[%emt 0:00:15]} 19. Rae1 {[%emt 0:00:52]} Ndf6 {[%emt 0:03:15]} 20. Bf5 {[%emt 0:04:48]} Rb8 {[%emt 0:00:20]} 21. Re5 {[%emt 0:04:17]} Rf8 {[%emt 0:03:35]} 22. Qe2 {[%emt 0:01:58]} Nf4 {[%emt 0:01:33]} 23. Qe3 {[%emt 0:01:16]} N6h5 {[%emt 0:00:31]} 24. Re7 {[%emt 0:02:56]} Qf6 {[%emt 0:02:25]} 25. Bg4 {[%emt 0:02:04]} Qg6 {[%emt 0:01:17]} 26. Kh1 {[%emt 0:03:08]} f5 {[%emt 0:01:28]} 27. Rg1 {[%emt 0:02:18]} fxg4 {[%emt 0:00:40]} 28. Rxg4 {[%emt 0:01:30]} Qd3 {[%emt 0:02:13]} 29. Qe5 {[%emt 0:03:35]} Qd1+ {[%emt 0:01:08]} 30. Rg1 {[%emt 0:00:28]} Qxf3+ {[%emt 0:00:06]} 31. Rg2 {[%emt 0:01:19]} Qxg2# {[%emt 0:00:37]} 0-1